[Event "Early-Titled-Tuesday-Blitz-January-16-2024"]
[Site "Chess.com"]
[Date "2024.01.16"]
[Round "2"]
[White "Puzzlebot_1294"]
[Black "TigrVShlyape"]
[Result "0-1"]
[WhiteElo "2609"]
[BlackElo "2943"]
[TimeControl "180+1"]
[EndTime "8:17:21 PST"]
[Termination "TigrVShlyape won by resignation"]

1. d4 {[%clk 0:03:00.9]} 1... f5 {[%clk 0:02:58.1]} 2. Nf3 {[%clk 0:03:00.5]}
2... Nf6 {[%clk 0:02:57.6]} 3. g3 {[%clk 0:03:00.2]} 3... g6 {[%clk 0:02:57.2]}
4. Bg2 {[%clk 0:03:00.6]} 4... Bg7 {[%clk 0:02:57.5]} 5. O-O {[%clk 0:03:01.3]}
5... O-O {[%clk 0:02:57.1]} 6. c4 {[%clk 0:03:01.9]} 6... d6 {[%clk 0:02:57.2]}
7. Nc3 {[%clk 0:03:01.2]} 7... c6 {[%clk 0:02:57.2]} 8. b3 {[%clk 0:03:01.1]}
8... a5 {[%clk 0:02:54]} 9. Bb2 {[%clk 0:03:00.9]} 9... Na6 {[%clk 0:02:53.6]}
10. a3 {[%clk 0:03:01.4]} 10... Qc7 {[%clk 0:02:34.6]} 11. Qc2 {[%clk
0:02:58.2]} 11... e5 {[%clk 0:02:33.9]} 12. dxe5 {[%clk 0:02:59.1]} 12... dxe5
{[%clk 0:02:33.4]} 13. e4 {[%clk 0:03:00]} 13... Nc5 {[%clk 0:02:29]} 14. Nd2
{[%clk 0:02:24.9]} 14... f4 {[%clk 0:02:16.2]} 15. b4 {[%clk 0:02:22]} 15... Ne6
{[%clk 0:02:15.7]} 16. Ne2 {[%clk 0:02:15.7]} 16... g5 {[%clk 0:01:53.4]} 17. h3
{[%clk 0:01:42]} 17... h5 {[%clk 0:01:49.2]} 18. c5 {[%clk 0:01:00.6]} 18... g4
{[%clk 0:01:45.4]} 19. hxg4 {[%clk 0:01:01.5]} 19... hxg4 {[%clk 0:01:45]} 20.
f3 {[%clk 0:01:01.5]} 20... fxg3 {[%clk 0:01:41.3]} 21. Nxg3 {[%clk 0:00:56.6]}
21... Nf4 {[%clk 0:01:36.8]} 22. Nc4 {[%clk 0:00:51.7]} 22... N6h5 {[%clk
0:01:34.3]} 23. Nxh5 {[%clk 0:00:47.5]} 23... Nxh5 {[%clk 0:01:34.3]} 24. fxg4
{[%clk 0:00:48]} 24... Bxg4 {[%clk 0:01:33.4]} 25. Nxa5 {[%clk 0:00:46.4]} 25...
Nf4 {[%clk 0:01:30.5]} 26. Rae1 {[%clk 0:00:40]} 26... Rf6 {[%clk 0:01:23.4]}
27. Qb3+ {[%clk 0:00:16.7]} 27... Be6 {[%clk 0:01:22.1]} 28. Qc2 {[%clk
0:00:03.8]} 28... Rg6 {[%clk 0:01:22.2]} 29. Rf2 {[%clk 0:00:03.8]} 29... Nh3+
{[%clk 0:01:21.7]} 30. Kh1 {[%clk 0:00:04.4]} 30... Nxf2+ {[%clk 0:01:21.8]} 31.
Qxf2 {[%clk 0:00:05.3]} 31... Rf8 {[%clk 0:01:21.4]} 32. Qe2 {[%clk 0:00:04.7]}
32... Qe7 {[%clk 0:01:20.6]} 33. Kg1 {[%clk 0:00:03.7]} 33... Bh3 {[%clk
0:01:16.8]} 0-1

[Event "Early-Titled-Tuesday-Blitz-January-16-2024"]
[Site "Chess.com"]
[Date "2024.01.16"]
[Round "2"]
[White "DvaHrasta"]
[Black "pfalcon1949"]
[Result "1-0"]
[WhiteElo "2436"]
[BlackElo "1965"]
[TimeControl "180+1"]
[EndTime "8:17:25 PST"]
[Termination "DvaHrasta won by resignation"]

1. c4 {[%clk 0:03:00.9]} 1... Nf6 {[%clk 0:02:58.5]} 2. g3 {[%clk 0:03:01]} 2...
e5 {[%clk 0:02:57.7]} 3. Bg2 {[%clk 0:03:00.7]} 3... Nc6 {[%clk 0:02:57.3]} 4.
Nf3 {[%clk 0:02:58.7]} 4... d5 {[%clk 0:02:57]} 5. cxd5 {[%clk 0:02:57.8]} 5...
Nxd5 {[%clk 0:02:57.9]} 6. O-O {[%clk 0:02:57.7]} 6... Be7 {[%clk 0:02:57.9]} 7.
d4 {[%clk 0:02:53.2]} 7... exd4 {[%clk 0:02:51.3]} 8. Nxd4 {[%clk 0:02:53.1]}
8... O-O {[%clk 0:02:47.6]} 9. Nxc6 {[%clk 0:02:52]} 9... bxc6 {[%clk
0:02:46.9]} 10. Qa4 {[%clk 0:02:48.4]} 10... Bd7 {[%clk 0:02:43.7]} 11. Rd1
{[%clk 0:02:43.8]} 11... Nb6 {[%clk 0:02:41.9]} 12. Qa6 {[%clk 0:02:25.5]} 12...
Nd5 {[%clk 0:02:24.1]} 13. Nc3 {[%clk 0:02:20.2]} 13... Nxc3 {[%clk 0:02:21.3]}
14. bxc3 {[%clk 0:02:13.2]} 14... Bd6 {[%clk 0:02:20.9]} 15. Ba3 {[%clk
0:02:06.3]} 15... Bxa3 {[%clk 0:02:14.6]} 16. Qxa3 {[%clk 0:02:05.7]} 16... Qc8
{[%clk 0:02:09.3]} 17. Qc5 {[%clk 0:01:58.4]} 17... Rb8 {[%clk 0:01:58.8]} 18.
Qxa7 {[%clk 0:01:54]} 18... Rb2 {[%clk 0:01:57.4]} 19. Qd4 {[%clk 0:01:52.4]}
19... Bh3 {[%clk 0:01:54.9]} 20. Bf3 {[%clk 0:01:47.5]} 20... Qe6 {[%clk
0:01:49.4]} 21. a4 {[%clk 0:01:41.8]} 21... h6 {[%clk 0:01:20.2]} 22. a5 {[%clk
0:01:40.9]} 22... c5 {[%clk 0:01:07.2]} 23. Qxc5 {[%clk 0:01:37.6]} 23... Rxe2
{[%clk 0:01:06.1]} 24. Bxe2 {[%clk 0:01:21.5]} 24... Qxe2 {[%clk 0:01:05.9]} 25.
Qe3 {[%clk 0:01:21.4]} 25... Qb2 {[%clk 0:00:51.4]} 26. a6 {[%clk 0:01:15.9]}
26... Ra8 {[%clk 0:00:48.3]} 27. g4 {[%clk 0:01:01.8]} 27... Bxg4 {[%clk
0:00:19.6]} 28. Qe4 {[%clk 0:00:59.7]} 28... Rxa6 {[%clk 0:00:15.4]} 29. Rxa6
{[%clk 0:00:50.7]} 29... Bxd1 {[%clk 0:00:13.8]} 30. Ra8+ {[%clk 0:00:49]} 1-0

[Event "Early-Titled-Tuesday-Blitz-January-16-2024"]
[Site "Chess.com"]
[Date "2024.01.16"]
[Round "2"]
[White "Bauman_Guy"]
[Black "Lady_Nika"]
[Result "1-0"]
[WhiteElo "2915"]
[BlackElo "2599"]
[TimeControl "180+1"]
[EndTime "8:17:30 PST"]
[Termination "Bauman_Guy won on time"]

1. e4 {[%clk 0:03:00.9]} 1... e6 {[%clk 0:02:59.6]} 2. d4 {[%clk 0:03:00.9]}
2... d5 {[%clk 0:03:00.5]} 3. Nc3 {[%clk 0:03:01.5]} 3... Nf6 {[%clk 0:03:01]}
4. Bg5 {[%clk 0:03:01.3]} 4... Be7 {[%clk 0:03:01.3]} 5. e5 {[%clk 0:03:00.2]}
5... Nfd7 {[%clk 0:03:01.6]} 6. Bxe7 {[%clk 0:03:00.8]} 6... Qxe7 {[%clk
0:03:01.9]} 7. f4 {[%clk 0:03:01.1]} 7... a6 {[%clk 0:03:01.5]} 8. Nf3 {[%clk
0:02:54.8]} 8... c5 {[%clk 0:03:01]} 9. Ne2 {[%clk 0:02:55.1]} 9... cxd4 {[%clk
0:03:01.1]} 10. Nexd4 {[%clk 0:02:54.2]} 10... Nc6 {[%clk 0:03:02]} 11. Qd2
{[%clk 0:02:54]} 11... Nc5 {[%clk 0:02:59]} 12. Bd3 {[%clk 0:02:53.4]} 12... g6
{[%clk 0:02:57]} 13. h4 {[%clk 0:02:52.6]} 13... h5 {[%clk 0:02:56.6]} 14. c3
{[%clk 0:02:41.5]} 14... Bd7 {[%clk 0:02:54]} 15. Bc2 {[%clk 0:02:41.4]} 15...
Nxd4 {[%clk 0:02:40.5]} 16. Nxd4 {[%clk 0:02:39.3]} 16... O-O-O {[%clk
0:02:35.4]} 17. Qe3 {[%clk 0:02:36.5]} 17... f5 {[%clk 0:02:18.4]} 18. exf6
{[%clk 0:02:25]} 18... Qxf6 {[%clk 0:02:17.9]} 19. O-O-O {[%clk 0:02:22.2]}
19... Rhf8 {[%clk 0:02:13.3]} 20. g3 {[%clk 0:02:21.9]} 20... Kb8 {[%clk
0:01:48.7]} 21. Rhe1 {[%clk 0:02:20]} 21... Bc8 {[%clk 0:01:40.5]} 22. Nc6+
{[%clk 0:02:12.7]} 22... bxc6 {[%clk 0:01:29.9]} 23. Qxc5 {[%clk 0:02:13.6]}
23... Bb7 {[%clk 0:01:25.2]} 24. Re5 {[%clk 0:02:13.6]} 24... Rfe8 {[%clk
0:01:02.6]} 25. Rde1 {[%clk 0:02:03.4]} 25... Rd7 {[%clk 0:00:56.3]} 26. Bd3
{[%clk 0:01:48.6]} 26... Ree7 {[%clk 0:00:11.3]} 27. Qb6 {[%clk 0:01:36.8]}
27... Re8 {[%clk 0:00:10.5]} 28. Bxa6 {[%clk 0:01:32.6]} 28... d4 {[%clk
0:00:10.4]} 29. Bxb7 {[%clk 0:01:24.9]} 29... Rxb7 {[%clk 0:00:09.5]} 30. Qxd4
{[%clk 0:01:25.6]} 30... Rd8 {[%clk 0:00:07.7]} 31. Qe3 {[%clk 0:01:20.2]} 31...
Qf7 {[%clk 0:00:05.3]} 32. Rxe6 {[%clk 0:01:16.4]} 32... Qg8 {[%clk 0:00:04.9]}
33. Re8 {[%clk 0:01:11.4]} 1-0

[Event "Early-Titled-Tuesday-Blitz-January-16-2024"]
[Site "Chess.com"]
[Date "2024.01.16"]
[Round "2"]
[White "Alex_Terzi"]
[Black "j2806"]
[Result "1-0"]
[WhiteElo "2446"]
[BlackElo "2070"]
[TimeControl "180+1"]
[EndTime "8:17:30 PST"]
[Termination "Alex_Terzi won by resignation"]

1. e4 {[%clk 0:02:59.9]} 1... c5 {[%clk 0:02:49]} 2. Nf3 {[%clk 0:02:59.5]} 2...
d6 {[%clk 0:02:47.7]} 3. d4 {[%clk 0:02:59.5]} 3... cxd4 {[%clk 0:02:47.9]} 4.
Nxd4 {[%clk 0:02:59.7]} 4... Nf6 {[%clk 0:02:48.4]} 5. Nc3 {[%clk 0:02:57.7]}
5... a6 {[%clk 0:02:48.9]} 6. f3 {[%clk 0:02:55.8]} 6... e5 {[%clk 0:02:48.2]}
7. Nb3 {[%clk 0:02:55]} 7... Be6 {[%clk 0:02:48.6]} 8. Be3 {[%clk 0:02:54.5]}
8... Be7 {[%clk 0:02:47.6]} 9. Qd2 {[%clk 0:02:54.7]} 9... Nc6 {[%clk
0:02:44.7]} 10. O-O-O {[%clk 0:02:52.4]} 10... b6 {[%clk 0:02:42.7]} 11. g4
{[%clk 0:02:49.2]} 11... b5 {[%clk 0:02:32.6]} 12. h4 {[%clk 0:02:23.8]} 12...
Na5 {[%clk 0:01:58.5]} 13. Nxa5 {[%clk 0:01:46.1]} 13... Qxa5 {[%clk 0:01:41.5]}
14. a3 {[%clk 0:01:36.9]} 14... b4 {[%clk 0:01:25.9]} 15. Nb1 {[%clk 0:01:27.9]}
15... Rb8 {[%clk 0:01:12.4]} 16. h5 {[%clk 0:01:15]} 16... Qa4 {[%clk
0:01:01.4]} 17. Qe2 {[%clk 0:00:52.7]} 17... Rc8 {[%clk 0:00:43.6]} 18. Rd2
{[%clk 0:00:27.3]} 18... Bc4 {[%clk 0:00:33.4]} 19. Qd1 {[%clk 0:00:21.1]} 19...
Ba2 {[%clk 0:00:24.7]} 20. c3 {[%clk 0:00:17.9]} 20... Bxb1 {[%clk 0:00:23.6]}
21. Qxa4+ {[%clk 0:00:16.2]} 1-0

[Event "Early-Titled-Tuesday-Blitz-January-16-2024"]
[Site "Chess.com"]
[Date "2024.01.16"]
[Round "2"]
[White "MightyGMpretender"]
[Black "aistrel"]
[Result "1-0"]
[WhiteElo "2839"]
[BlackElo "2565"]
[TimeControl "180+1"]
[EndTime "8:17:31 PST"]
[Termination "MightyGMpretender won by resignation"]

1. e4 {[%clk 0:03:00.9]} 1... c6 {[%clk 0:02:58.1]} 2. Nf3 {[%clk 0:02:59.6]}
2... d5 {[%clk 0:02:59]} 3. exd5 {[%clk 0:03:00.5]} 3... cxd5 {[%clk 0:02:59.9]}
4. Ne5 {[%clk 0:03:01.2]} 4... a6 {[%clk 0:02:59.3]} 5. d4 {[%clk 0:03:00.2]}
5... Nc6 {[%clk 0:02:57.9]} 6. Nxc6 {[%clk 0:02:57.5]} 6... bxc6 {[%clk
0:02:58.8]} 7. Bd3 {[%clk 0:02:57.9]} 7... Nf6 {[%clk 0:02:58.7]} 8. O-O {[%clk
0:02:57.6]} 8... Bg4 {[%clk 0:02:58.2]} 9. Qe1 {[%clk 0:02:46]} 9... e6 {[%clk
0:02:56.6]} 10. Bf4 {[%clk 0:02:46]} 10... Bd6 {[%clk 0:02:54.8]} 11. Qe3 {[%clk
0:02:41.8]} 11... Bh5 {[%clk 0:02:45]} 12. Nd2 {[%clk 0:02:36.6]} 12... Bg6
{[%clk 0:02:43.4]} 13. Bxd6 {[%clk 0:02:23.9]} 13... Qxd6 {[%clk 0:02:42.2]} 14.
Nb3 {[%clk 0:02:22.1]} 14... Nd7 {[%clk 0:02:35.3]} 15. Rac1 {[%clk 0:02:12.5]}
15... O-O {[%clk 0:02:34.5]} 16. c4 {[%clk 0:02:13.2]} 16... Bxd3 {[%clk
0:02:29.2]} 17. Qxd3 {[%clk 0:02:13.2]} 17... Qb4 {[%clk 0:02:29.6]} 18. Qc3
{[%clk 0:01:57.5]} 18... Rfb8 {[%clk 0:02:28.3]} 19. Na5 {[%clk 0:01:53.5]}
19... Qxb2 {[%clk 0:02:21.1]} 20. Nxc6 {[%clk 0:01:52.9]} 20... Qxc3 {[%clk
0:01:55.7]} 21. Rxc3 {[%clk 0:01:52.8]} 21... Rb2 {[%clk 0:01:54.9]} 22. cxd5
{[%clk 0:01:50.5]} 22... exd5 {[%clk 0:01:55.8]} 23. Rfc1 {[%clk 0:01:43.8]}
23... Kf8 {[%clk 0:01:42.4]} 24. a3 {[%clk 0:01:37.4]} 24... Nb6 {[%clk
0:01:31.8]} 25. Ne5 {[%clk 0:01:30.9]} 25... f6 {[%clk 0:01:19.6]} 26. Nd3
{[%clk 0:01:30.1]} 26... Rd2 {[%clk 0:01:19]} 27. Nf4 {[%clk 0:01:26.1]} 27...
Re8 {[%clk 0:01:15.7]} 28. g3 {[%clk 0:01:21]} 28... Rxd4 {[%clk 0:01:14.8]} 29.
Rc6 {[%clk 0:01:20.8]} 29... Rc4 {[%clk 0:01:13.3]} 30. R1xc4 {[%clk 0:01:07]}
30... Nxc4 {[%clk 0:01:14.2]} 31. a4 {[%clk 0:01:05.4]} 31... Re1+ {[%clk
0:00:57.8]} 32. Kg2 {[%clk 0:01:05.3]} 32... Ra1 {[%clk 0:00:58.7]} 33. Rxa6
{[%clk 0:00:59.6]} 33... Nb2 {[%clk 0:00:55.4]} 34. Ra8+ {[%clk 0:00:53.9]}
34... Kf7 {[%clk 0:00:54.5]} 35. Ra7+ {[%clk 0:00:54]} 35... Kg8 {[%clk
0:00:40.7]} 36. a5 {[%clk 0:00:54.5]} 36... d4 {[%clk 0:00:36.9]} 37. Ne6 {[%clk
0:00:48.3]} 37... d3 {[%clk 0:00:37.3]} 38. Rxg7+ {[%clk 0:00:48]} 38... Kh8
{[%clk 0:00:37.9]} 39. Rb7 {[%clk 0:00:48.6]} 1-0

[Event "Early-Titled-Tuesday-Blitz-January-16-2024"]
[Site "Chess.com"]
[Date "2024.01.16"]
[Round "2"]
[White "Predo63"]
[Black "Batcu"]
[Result "0-1"]
[WhiteElo "2490"]
[BlackElo "2256"]
[TimeControl "180+1"]
[EndTime "8:17:32 PST"]
[Termination "Batcu won by resignation"]

1. d4 {[%clk 0:03:00.9]} 1... Nf6 {[%clk 0:02:59.5]} 2. Bg5 {[%clk 0:03:00.3]}
2... e6 {[%clk 0:02:53.5]} 3. e3 {[%clk 0:03:00.1]} 3... c5 {[%clk 0:02:46.9]}
4. c3 {[%clk 0:02:59.9]} 4... b6 {[%clk 0:02:44.7]} 5. Be2 {[%clk 0:02:59.5]}
5... cxd4 {[%clk 0:02:38.3]} 6. exd4 {[%clk 0:02:52.6]} 6... Bb7 {[%clk
0:02:35.5]} 7. Bf3 {[%clk 0:02:51.9]} 7... Bxf3 {[%clk 0:02:29.4]} 8. Nxf3
{[%clk 0:02:51.5]} 8... d5 {[%clk 0:02:30]} 9. O-O {[%clk 0:02:47.7]} 9... Nbd7
{[%clk 0:02:26.9]} 10. Re1 {[%clk 0:02:47.7]} 10... Bd6 {[%clk 0:02:25.7]} 11.
Bh4 {[%clk 0:02:46.2]} 11... Qc7 {[%clk 0:02:23]} 12. Nbd2 {[%clk 0:02:45.1]}
12... O-O {[%clk 0:02:21.6]} 13. Bg3 {[%clk 0:02:45]} 13... b5 {[%clk
0:02:18.2]} 14. a3 {[%clk 0:02:41.8]} 14... a5 {[%clk 0:02:17.7]} 15. Bxd6
{[%clk 0:02:40.3]} 15... Qxd6 {[%clk 0:02:17.3]} 16. b4 {[%clk 0:02:40.2]} 16...
Rfc8 {[%clk 0:02:11.3]} 17. Re3 {[%clk 0:02:39]} 17... a4 {[%clk 0:01:51.2]} 18.
Ne5 {[%clk 0:02:33.9]} 18... Nb6 {[%clk 0:01:46.4]} 19. Qf3 {[%clk 0:02:27.2]}
19... Rc7 {[%clk 0:01:39.9]} 20. g4 {[%clk 0:02:21.6]} 20... Rac8 {[%clk
0:01:27.2]} 21. Rae1 {[%clk 0:02:18.9]} 21... Nc4 {[%clk 0:00:42.4]} 22. Ndxc4
{[%clk 0:02:15.7]} 22... dxc4 {[%clk 0:00:42.6]} 23. g5 {[%clk 0:02:07]} 23...
Nd5 {[%clk 0:00:42.1]} 24. Re4 {[%clk 0:02:07.3]} 24... Rf8 {[%clk 0:00:38.5]}
25. Ng4 {[%clk 0:02:01]} 25... Qc6 {[%clk 0:00:30.6]} 26. Ne5 {[%clk 0:01:53.6]}
26... Qd6 {[%clk 0:00:30.2]} 27. Qh5 {[%clk 0:01:53.4]} 27... f6 {[%clk
0:00:28.2]} 28. Rh4 {[%clk 0:01:39.4]} 28... g6 {[%clk 0:00:26.5]} 29. Nxg6
{[%clk 0:01:38.1]} 29... hxg6 {[%clk 0:00:26.8]} 30. Qh8+ {[%clk 0:01:29]} 30...
Kf7 {[%clk 0:00:27]} 31. Qh7+ {[%clk 0:01:25.6]} 31... Ke8 {[%clk 0:00:27.4]}
32. Qxg6+ {[%clk 0:01:25.9]} 32... Kd8 {[%clk 0:00:27.6]} 33. gxf6 {[%clk
0:01:23.4]} 33... Nxf6 {[%clk 0:00:26.5]} 34. Kh1 {[%clk 0:01:17.7]} 34... Rcf7
{[%clk 0:00:26.7]} 35. Qg2 {[%clk 0:01:12.7]} 35... Rg8 {[%clk 0:00:22.4]} 36.
Qa8+ {[%clk 0:01:12.3]} 36... Ke7 {[%clk 0:00:21.8]} 37. Qb7+ {[%clk 0:01:10.5]}
37... Kf8 {[%clk 0:00:21]} 38. Qc8+ {[%clk 0:01:06.3]} 38... Ne8 {[%clk
0:00:20.9]} 39. Qb7 {[%clk 0:01:04.2]} 39... Rxb7 {[%clk 0:00:19.9]} 0-1

[Event "Early-Titled-Tuesday-Blitz-January-16-2024"]
[Site "Chess.com"]
[Date "2024.01.16"]
[Round "2"]
[White "AryanTari"]
[Black "tteshan"]
[Result "1-0"]
[WhiteElo "2918"]
[BlackElo "2601"]
[TimeControl "180+1"]
[EndTime "8:17:34 PST"]
[Termination "AryanTari won by resignation"]

1. a3 {[%clk 0:02:50.7]} 1... c5 {[%clk 0:02:59.6]} 2. b4 {[%clk 0:02:49.6]}
2... cxb4 {[%clk 0:02:53.5]} 3. axb4 {[%clk 0:02:50.5]} 3... Nf6 {[%clk
0:02:51.7]} 4. e3 {[%clk 0:02:47.6]} 4... e6 {[%clk 0:02:51.2]} 5. b5 {[%clk
0:02:46.9]} 5... Be7 {[%clk 0:02:49.7]} 6. Nf3 {[%clk 0:02:46.9]} 6... O-O
{[%clk 0:02:50.2]} 7. Bb2 {[%clk 0:02:47.5]} 7... d5 {[%clk 0:02:50.5]} 8. c4
{[%clk 0:02:47.5]} 8... dxc4 {[%clk 0:02:48.7]} 9. Bxc4 {[%clk 0:02:47.4]} 9...
a6 {[%clk 0:02:48.7]} 10. O-O {[%clk 0:02:43.8]} 10... Nbd7 {[%clk 0:02:46.3]}
11. bxa6 {[%clk 0:02:28.3]} 11... bxa6 {[%clk 0:02:46.2]} 12. d4 {[%clk
0:02:28.6]} 12... Bb7 {[%clk 0:02:45.8]} 13. Nbd2 {[%clk 0:02:28.6]} 13... Nb6
{[%clk 0:02:44.8]} 14. Be2 {[%clk 0:02:28.4]} 14... a5 {[%clk 0:02:42.1]} 15.
Nb3 {[%clk 0:02:16.7]} 15... a4 {[%clk 0:02:32.7]} 16. Nc5 {[%clk 0:02:16.7]}
16... Bxc5 {[%clk 0:02:28.7]} 17. dxc5 {[%clk 0:02:16.9]} 17... Qxd1 {[%clk
0:02:29.2]} 18. Rfxd1 {[%clk 0:02:17.6]} 18... Nbd5 {[%clk 0:02:28.5]} 19. Ne5
{[%clk 0:02:15.4]} 19... Rfc8 {[%clk 0:02:24.2]} 20. Rdc1 {[%clk 0:02:05.2]}
20... Ba6 {[%clk 0:02:00.5]} 21. Bf3 {[%clk 0:01:43.2]} 21... Bb5 {[%clk
0:01:54.6]} 22. Ba3 {[%clk 0:01:43.5]} 22... Rab8 {[%clk 0:01:49.8]} 23. c6
{[%clk 0:01:37.4]} 23... h6 {[%clk 0:01:31.3]} 24. g4 {[%clk 0:01:31.7]} 24...
Nc7 {[%clk 0:01:14.4]} 25. Nd7 {[%clk 0:01:18.9]} 25... Nxd7 {[%clk 0:00:57.3]}
26. cxd7 {[%clk 0:01:19.8]} 26... Bxd7 {[%clk 0:00:57.8]} 27. Bd6 {[%clk
0:01:19.9]} 27... Ne8 {[%clk 0:00:54.2]} 28. Bxb8 {[%clk 0:01:20]} 28... Rxb8
{[%clk 0:00:55.1]} 29. Bc6 {[%clk 0:01:20.1]} 29... Bxc6 {[%clk 0:00:42.9]} 30.
Rxc6 {[%clk 0:01:21]} 30... Rb4 {[%clk 0:00:35.8]} 31. h3 {[%clk 0:01:21.2]}
31... Nf6 {[%clk 0:00:34.1]} 32. Ra6 {[%clk 0:01:21.2]} 32... h5 {[%clk
0:00:33.1]} 33. R1xa4 {[%clk 0:01:20.7]} 33... Rb1+ {[%clk 0:00:32.3]} 34. Kg2
{[%clk 0:01:20.8]} 34... hxg4 {[%clk 0:00:32.9]} 35. hxg4 {[%clk 0:01:21.7]}
35... g6 {[%clk 0:00:28.9]} 36. g5 {[%clk 0:01:04.3]} 36... Nd5 {[%clk
0:00:25.6]} 37. Ra8+ {[%clk 0:01:04]} 37... Kg7 {[%clk 0:00:25.3]} 38. Rh4
{[%clk 0:01:04.7]} 1-0

[Event "Early-Titled-Tuesday-Blitz-January-16-2024"]
[Site "Chess.com"]
[Date "2024.01.16"]
[Round "2"]
[White "Thjop"]
[Black "Bkmzzzzz"]
[Result "0-1"]
[WhiteElo "2650"]
[BlackElo "2394"]
[TimeControl "180+1"]
[EndTime "8:17:36 PST"]
[Termination "Bkmzzzzz won by resignation"]

1. d4 {[%clk 0:02:59.4]} 1... d5 {[%clk 0:02:59.8]} 2. Nf3 {[%clk 0:02:59.3]}
2... Nf6 {[%clk 0:02:59.2]} 3. g3 {[%clk 0:02:59.8]} 3... e6 {[%clk 0:02:56.2]}
4. Bg2 {[%clk 0:02:59.9]} 4... Be7 {[%clk 0:02:57]} 5. O-O {[%clk 0:03:00.4]}
5... O-O {[%clk 0:02:57.6]} 6. c4 {[%clk 0:03:01]} 6... c5 {[%clk 0:02:56.7]} 7.
cxd5 {[%clk 0:03:00.7]} 7... Nxd5 {[%clk 0:02:56.5]} 8. dxc5 {[%clk 0:02:58.9]}
8... Bxc5 {[%clk 0:02:55.8]} 9. a3 {[%clk 0:02:59.2]} 9... Nc6 {[%clk
0:02:53.7]} 10. b4 {[%clk 0:02:58.4]} 10... Be7 {[%clk 0:02:54.2]} 11. e4 {[%clk
0:02:58.2]} 11... Nf6 {[%clk 0:02:52.9]} 12. e5 {[%clk 0:02:57.2]} 12... Nd5
{[%clk 0:02:48.1]} 13. Bb2 {[%clk 0:02:56.8]} 13... a6 {[%clk 0:02:47.8]} 14.
Nbd2 {[%clk 0:02:55.8]} 14... b5 {[%clk 0:02:39.4]} 15. Ne4 {[%clk 0:02:52.2]}
15... Bb7 {[%clk 0:02:40]} 16. Rc1 {[%clk 0:02:47.3]} 16... a5 {[%clk
0:02:38.2]} 17. Nc5 {[%clk 0:02:34.1]} 17... Bxc5 {[%clk 0:02:34.8]} 18. bxc5
{[%clk 0:02:35]} 18... b4 {[%clk 0:02:31.5]} 19. axb4 {[%clk 0:02:33.8]} 19...
axb4 {[%clk 0:02:25.6]} 20. h4 {[%clk 0:02:33.5]} 20... Qe7 {[%clk 0:02:19.1]}
21. Ng5 {[%clk 0:02:30.5]} 21... h6 {[%clk 0:02:17.9]} 22. Ne4 {[%clk
0:02:30.2]} 22... Ba6 {[%clk 0:02:17.7]} 23. Re1 {[%clk 0:02:27.8]} 23... Rfd8
{[%clk 0:01:57.1]} 24. Qg4 {[%clk 0:02:27.3]} 24... Bd3 {[%clk 0:01:31.9]} 25.
Nf6+ {[%clk 0:02:19.5]} 25... Kh8 {[%clk 0:01:22.3]} 26. Nxd5 {[%clk 0:02:19.2]}
26... exd5 {[%clk 0:01:23.2]} 27. e6 {[%clk 0:02:19.4]} 27... f6 {[%clk
0:01:12]} 28. h5 {[%clk 0:02:17.2]} 28... Ra2 {[%clk 0:01:10]} 29. Ba1 {[%clk
0:02:13.3]} 29... b3 {[%clk 0:01:07.9]} 30. Bc3 {[%clk 0:02:06.5]} 30... d4
{[%clk 0:00:49.1]} 31. Bxc6 {[%clk 0:02:03.2]} 31... dxc3 {[%clk 0:00:49.2]} 32.
Rxc3 {[%clk 0:02:01.5]} 32... b2 {[%clk 0:00:49.6]} 33. Rb3 {[%clk 0:01:58.8]}
33... Ra1 {[%clk 0:00:47.9]} 34. Rxb2 {[%clk 0:01:39.1]} 34... Rxe1+ {[%clk
0:00:47.4]} 35. Kg2 {[%clk 0:01:38.7]} 35... Qxe6 {[%clk 0:00:47.8]} 36. Bf3
{[%clk 0:01:28.3]} 36... Be4 {[%clk 0:00:25.1]} 37. Qf4 {[%clk 0:01:01.5]} 37...
Bxf3+ {[%clk 0:00:24.7]} 38. Qxf3 {[%clk 0:01:02.4]} 38... Qe4 {[%clk
0:00:25.4]} 39. c6 {[%clk 0:00:59.2]} 39... Qxf3+ {[%clk 0:00:25.2]} 40. Kxf3
{[%clk 0:01:00.1]} 40... Rc1 {[%clk 0:00:25.7]} 0-1

[Event "Early-Titled-Tuesday-Blitz-January-16-2024"]
[Site "Chess.com"]
[Date "2024.01.16"]
[Round "2"]
[White "ahkashefi2800"]
[Black "Zampronha1971"]
[Result "1/2-1/2"]
[WhiteElo "2549"]
[BlackElo "2335"]
[TimeControl "180+1"]
[EndTime "8:17:37 PST"]
[Termination "Game drawn by repetition"]

1. d4 {[%clk 0:02:59.7]} 1... Nf6 {[%clk 0:02:59]} 2. Nf3 {[%clk 0:02:59.9]}
2... e6 {[%clk 0:02:58]} 3. Bf4 {[%clk 0:02:59.3]} 3... c5 {[%clk 0:02:57.1]} 4.
e3 {[%clk 0:02:58.8]} 4... d5 {[%clk 0:02:57]} 5. c3 {[%clk 0:02:59]} 5... Nc6
{[%clk 0:02:57.6]} 6. Nbd2 {[%clk 0:02:58.9]} 6... Bd6 {[%clk 0:02:58.1]} 7. Bg3
{[%clk 0:02:58.6]} 7... Qe7 {[%clk 0:02:57]} 8. Bd3 {[%clk 0:02:57.8]} 8... O-O
{[%clk 0:02:56.4]} 9. Ne5 {[%clk 0:02:56.4]} 9... Nd7 {[%clk 0:02:54.4]} 10. f4
{[%clk 0:02:55.8]} 10... f6 {[%clk 0:02:52.4]} 11. Bxh7+ {[%clk 0:02:12]} 11...
Kxh7 {[%clk 0:02:51.3]} 12. Qh5+ {[%clk 0:02:11.9]} 12... Kg8 {[%clk 0:02:51.9]}
13. Ng6 {[%clk 0:02:12.8]} 13... Qe8 {[%clk 0:02:50]} 14. O-O {[%clk 0:02:08.4]}
14... Ne7 {[%clk 0:02:40.5]} 15. Qh8+ {[%clk 0:01:08.3]} 15... Kf7 {[%clk
0:02:40.4]} 16. Nxf8 {[%clk 0:01:08.3]} 16... Qxf8 {[%clk 0:02:20.7]} 17. Qh5+
{[%clk 0:01:04.8]} 17... Kg8 {[%clk 0:02:20.7]} 18. f5 {[%clk 0:00:57.5]} 18...
Bxg3 {[%clk 0:02:16.1]} 19. fxe6 {[%clk 0:00:53.8]} 19... Bd6 {[%clk 0:02:06.2]}
20. exd7 {[%clk 0:00:53.6]} 20... Bxd7 {[%clk 0:02:07.1]} 21. e4 {[%clk
0:00:53.5]} 21... cxd4 {[%clk 0:02:05.9]} 22. cxd4 {[%clk 0:00:52.1]} 22... Bb4
{[%clk 0:02:01.2]} 23. Nf3 {[%clk 0:00:45.3]} 23... dxe4 {[%clk 0:02:00.5]} 24.
Ng5 {[%clk 0:00:45.2]} 24... Qe8 {[%clk 0:01:04.1]} 25. Qh7+ {[%clk 0:00:36.6]}
25... Kf8 {[%clk 0:01:04.7]} 26. Rxf6+ {[%clk 0:00:02.2]} 26... gxf6 {[%clk
0:00:56.3]} 27. Qh6+ {[%clk 0:00:02.3]} 27... Kg8 {[%clk 0:00:55.5]} 28. Qh7+
{[%clk 0:00:02.8]} 28... Kf8 {[%clk 0:00:55.7]} 29. Qh6+ {[%clk 0:00:02.9]}
29... Kg8 {[%clk 0:00:56]} 30. Qh7+ {[%clk 0:00:02.1]} 30... Kf8 {[%clk
0:00:56.3]} 1/2-1/2